Cogmind - Beta 13 X1 @@@ ROGUE MODE // 2023.08.12 @ 22:49:22 Player: f3-rnm Result: Destroyed by G-67 Veteran with Field Laser Performance ------------- Evolutions (5) 2500 Regions Visited (9) 1800 Robots Destroyed (23) 115 Value Destroyed (709) 709 Prototype IDs (14) 280 Alien Tech Used (1) 200 Bonus (383) 383 TOTAL SCORE: 5987 Bonus ------- Follower Combat Kills 98 Met Zhirov 300 Friendly Fire -15 Cogmind --------- Core Integrity 0/1000 Matter 300/300 Energy 90/100 System Corruption 0% Temperature Cool (9) Movement Core (50) Location -4/Proximity Caves Parts ------- > --- POWER (1) -------- (None) > --- PROPULSION (5) --- (None) > --- UTILITY (9) ------ Signal Interpreter Experimental Weapon Shielding > --- WEAPON (2) ------- (None) > --- INVENTORY (5) ---- Advanced Hacking Suite Transdimensional Reconstructor Gauss Rifle Coil Gun Subdweller Shrapnel Launcher Peak State ------------ > --- POWER ------------ Light Angular Momentum Engine > --- PROPULSION ------- Carbon-fiber Leg Compact Wheel > --- UTILITY ---------- Advanced Energy Well Improved Matter Compressor Signal Interpreter Advanced Targeting Computer Experimental Weapon Shielding > --- WEAPON ----------- Advanced Plasma Cannon > --- INVENTORY -------- Improved Deuterium Engine Transdimensional Reconstructor Gauss Rifle Coil Gun Subdweller Shrapnel Launcher [Rating: 42] Favorites ----------- Power Subdweller Power Source Engine Subdweller Power Source Propulsion Compact Wheel Leg Aluminum Leg Wheel Compact Wheel Flight Unit VTOL Module Utility Scrap Engine Device Scrap Engine Storage Small Storage Unit Processor Signal Interpreter Protection Scrap Shield Weapon Light Assault Rifle Energy Gun Gatling Laser Energy Cannon Advanced Plasma Cannon Ballistic Gun Light Assault Rifle Launcher Subdweller Shrapnel Launcher Build | -11 -10 -10 -10 -7 -5 -5 -5 -5 -4 ------- Run | Jun Mat Min Sub Rec Fac Upp Upp Zhi Pro Slots Evolved 10 | . . . . . 10 . . . . Power . | . . . . . . . . . . Propulsion 3 | . . . . . 3 . . . . Utility 7 | . . . . . 7 . . . . Weapon . | . . . . . . . . . . Parts Attached 58 | 6 . 2 22 7 2 8 7 4 . Power 9 | 1 . 1 3 1 . 1 1 1 . Engine 9 | 1 . 1 3 1 . 1 1 1 . Core . | . . . . . . . . . . Reactor . | . . . . . . . . . . Propulsion 12 | 2 . . 4 1 . 3 2 . . Treads . | . . . . . . . . . . Leg 5 | 2 . . 1 . . 1 1 . . Wheel 5 | . . . 3 1 . . 1 . . Hover . | . . . . . . . . . . Flight 2 | . . . . . . 2 . . . Utility 15 | 1 . . 5 2 1 1 2 3 . Device 4 | . . . 1 1 1 1 . . . Storage 3 | 1 . . . . . . . 2 . Processor 2 | . . . . . . . 2 . . Hackware . | . . . . . . . . . . Protection 6 | . . . 4 1 . . . 1 . Artifact . | . . . . . . . . . . Weapon 22 | 2 . 1 10 3 1 3 2 . . Energy Gun 2 | . . . . 2 . . . . . Energy Cannon 2 | . . . . . 1 . 1 . . Ballistic Gun 12 | 2 . 1 6 1 . 2 . . . Ballistic Cannon . | . . . . . . . . . . Launcher 6 | . . . 4 . . 1 1 . . Special Weapon . | . . . . . . . . . . Impact Weapon . | . . . . . . . . . . Slashing Weapon . | . . . . . . . . . . Piercing Weapon . | . . . . . . . . . . Special Melee Weapon . | . . . . . . . . . . Unidentified Prototypes 4 | . . . . . . . . 4 . Parts Lost 19 | . . 2 5 1 1 5 3 . 2 Power 4 | . . 1 . 1 . 1 . . 1 Propulsion 6 | . . . 2 . 1 1 2 . . Utility 4 | . . . 1 . . 1 1 . 1 Weapon 5 | . . 1 2 . . 2 . . . Highest Loss Streak 3 | . . 2 2 1 1 3 1 . 2 To Critical Strikes . | . . . . . . . . . . Average Slot Usage (%) 57 | . 85 82 84 79 35 23 23 44 52 Engine 8 | . 14 12 14 6 . 3 2 5 5 Leg 7 | . 28 28 9 . . . 4 5 5 Wheel 9 | . . . 16 28 9 . 2 5 5 Flight 1 | . . . . . . 4 . . . Device 3 | . . . 1 3 7 9 1 . . Storage 3 | . 14 14 5 . . . . 5 11 Processor 1 | . . . . . . . 7 11 11 Protection 4 | . . . 9 14 5 . . 2 5 Ballistic Gun 12 | . 28 27 25 14 . . . . . Launcher 1 | . . . 2 6 . . . . . Naked Turns . | . . . . . . . . . . Heaviest Build 35 | 12 12 12 35 35 18 27 18 27 27 Greatest Support 36 | 20 20 20 36 32 32 20 16 16 16 Greatest Overweight (x) 6 | . . . 1 1 1 6 2 1 1 Average Overweight (x) . | . . . . . . 1 . 1 1 Largest Inventory Capacity 8 | 8 8 8 8 5 5 5 5 5 5 Average Capacity 5 | 7 8 8 6 5 5 5 5 5 5 Most Carried 8 | 5 6 8 8 5 5 5 5 5 5 Average Carried 5 | 2 5 7 5 4 4 4 4 4 5 Final Capacity 8 | 8 8 8 5 5 5 5 5 5 5 Final Carried 8 | 3 6 8 5 4 3 5 4 5 5 Class Distribution -------------------- 72% | Mutant 22% | Subdweller-Mutant 4% | Derelict-Mutant Dominant Class ---------------- Mutant | -10/Materials Mutant | -10/Mines Subdweller-Mutant | -10/Subcaves Mutant | -7/Recycling Mutant | -5/Factory Mutant | -5/Upper Caves Mutant | -5/Upper Caves Mutant | -5/Zhirov Mutant | -4/Proximity Caves Resources | -11 -10 -10 -10 -7 -5 -5 -5 -5 -4 ----------- Run | Jun Mat Min Sub Rec Fac Upp Upp Zhi Pro Matter Collected 1358 | 138 93 104 295 201 . 181 82 264 . Remotely . | . . . . . . . . . . Salvage Created 904 | . 122 117 254 114 . . . 297 . Parts 51 | . 7 9 25 3 . . . 7 . Haulers Intercepted . | . . . . . . . . . . Recyclers Shooed 1 | . 1 . . . . . . . . Parts Field Recycled . | . . . . . . . . . . Retrieved Matter . | . . . . . . . . . . Parts Self-Destructed 19 | . . . 7 . . 7 . 5 . Prevented . | . . . . . . . . . . Kills | -11 -10 -10 -10 -7 -5 -5 -5 -5 -4 ------- Run | Jun Mat Min Sub Rec Fac Upp Upp Zhi Pro Combat Hostiles Destroyed 19 | . 2 5 11 1 . . . . . Guns 14 | . 2 5 6 1 . . . . . AOE 5 | . . . 5 . . . . . . Classes Destroyed 8 | . 2 1 3 2 . . . . . Recycler 1 | . . . . 1 . . . . . Turret 2 | . . . 2 . . . . . . Watcher 1 | . 1 . . . . . . . . Swarmer 5 | . . 3 2 . . . . . . Grunt 6 | . 2 2 2 . . . . . . Sentry 1 | . . . . 1 . . . . . Artisan 1 | . . . 1 . . . . . . Subdweller 7 | . . . 7 . . . . . . Best Kill Streak 4 | . 3 3 4 2 . . . . . Combat Bots Only 3 | . 2 3 3 1 . . . . . Max Kills in Single Turn 2 | . 1 1 2 1 . . . . . Gunslinging . | . . . . . . . . . . Exploded 2 | . . . 2 . . . . . . Melee . | . . . . . . . . . . Uniques/NPCs Destroyed . | . . . . . . . . . . Combat | -11 -10 -10 -10 -7 -5 -5 -5 -5 -4 -------- Run | Jun Mat Min Sub Rec Fac Upp Upp Zhi Pro Damage Taken 3713 | . 104 293 1070 147 105 1192 439 . 363 Core 1259 | . 27 72 144 . 17 606 249 . 144 Absorbed by Shields 49 | . . . . . . 49 . . . Redirected to Shielding 41 | . . . . . . . . . 41 Core Remaining (%) 51 | 100 . . . 2 . . . . . Volleys Fired 98 | . 14 19 40 2 1 4 . 18 . Largest 2 | . 2 2 2 2 2 2 . 1 . Hottest 160 | . 40 40 70 70 160 155 . 98 . Shots Fired 167 | . 28 37 73 4 2 5 . 18 . Gun 132 | . 28 37 59 3 2 3 . . . Cannon 19 | . . . . . . 1 . 18 . Launcher 16 | . . . 14 1 . 1 . . . Special . | . . . . . . . . . . Kinetic 141 | . 28 37 69 4 . 3 . . . Thermal 21 | . . . . . 2 1 . 18 . Explosive 4 | . . . 4 . . . . . . Electromagnetic 1 | . . . . . . 1 . . . Robot Hit Streak 19 | . 4 6 10 5 . 1 . 19 . Robot Miss Streak 4 | . 2 4 2 . . 2 . . . Penetration Max . | . . . . . . . . . . Secondary Targets 3 | . 1 2 . . . . . . . Max Gunslinging Chain 1 | . 1 1 . . . . . . . Shots Hit Robots 109 | . 15 23 47 3 . 3 . 18 . Core Hits 63 | . 9 11 29 3 . 5 . 6 . Critical Kills . | . . . . . . . . . . Critical Parts Destroyed 1 | . . . . . . 1 . . . Critical Strikes 2 | . . . 1 . . 1 . . . Destroy 2 | . . . 1 . . 1 . . . Melee Attacks . | . . . . . . . . . . Impact . | . . . . . . . . . . Slashing . | . . . . . . . . . . Piercing . | . . . . . . . . . . Sneak Attacks . | . . . . . . . . . . Combat Hostiles . | . . . . . . . . . . Follow-up Attacks . | . . . . . . . . . . Damage Inflicted 3000 | . 134 188 1641 167 43 151 . 676 . Guns 1021 | . 134 188 583 40 43 33 . . . Cannons 676 | . . . . . . . . 676 . Explosions 1288 | . . . 1058 127 . 103 . . . Melee . | . . . . . . . . . . Ramming 15 | . . . . . . 15 . . . Kinetic 2099 | . 134 188 1486 167 . 124 . . . Thermal 731 | . . . . . 43 12 . 676 . Explosive 155 | . . . 155 . . . . . . Electromagnetic . | . . . . . . . . . . Impact . | . . . . . . . . . . Slashing . | . . . . . . . . . . Piercing . | . . . . . . . . . . Highest Corruption . | . . . . . . . . . . Average Corruption . | . . . . . . . . . . Corruption Purged . | . . . . . . . . . . Corruption Blocked . | . . . . . . . . . . Overload Shots . | . . . . . . . . . . Overflow Damage 161 | . . . 59 1 . . . 101 . Projectiles 101 | . . . . . . . . 101 . Explosions 60 | . . . 59 1 . . . . . Melee . | . . . . . . . . . . Knockbacks . | . . . . . . . . . . Impact . | . . . . . . . . . . Kinetic . | . . . . . . . . . . Secondary . | . . . . . . . . . . Self-Inflicted Damage 128 | . . . 63 59 . 6 . . . Shots 5 | . . . 4 1 . . . . . Rammed 5 | . . . . . . 5 . . . Targets Rammed 5 | . . . . . . 5 . . . Kicked . | . . . . . . . . . . Crushed . | . . . . . . . . . . Highest Temperature 63 | . 9 39 13 16 63 45 . . . Average Temperature 17 | . 8 17 12 15 38 24 . . . Received Heat Transfer 715 | . 57 108 258 30 21 9 126 . 106 Siege Activations . | . . . . . . . . . . Robots Corrupted . | . . . . . . . . . . Combat Hostiles . | . . . . . . . . . . Parts Fried . | . . . . . . . . . . Impact Corruptions . | . . . . . . . . . . Robots Melted . | . . . . . . . . . . Combat Hostiles . | . . . . . . . . . . Parts Melted . | . . . . . . . . . . Heat Transferred 1025 | . . . . . 100 25 . 900 . Parts Sabotaged . | . . . . . . . . . . Parts Stolen . | . . . . . . . . . . Parts Stripped . | . . . . . . . . . . Power Chain Reactions . | . . . . . . . . . . Missiles Intercepted . | . . . . . . . . . . Alert | -11 -10 -10 -10 -7 -5 -5 -5 -5 -4 ------- Run | Jun Mat Min Sub Rec Fac Upp Upp Zhi Pro Peak Influence 215 | . 110 142 . 215 61 . . . . Initial 189 | . . 42 . 189 56 . . . . Average 119 | . 60 110 . 176 57 . . . . Maximum Alert Level 1 | . . . . 1 . . . . . Low Security (%) 82 | 100 100 100 . 61 100 . . . . Level 1 17 | . . . . 38 . . . . . Level 2 . | . . . . . . . . . . Level 3 . | . . . . . . . . . . Level 4 . | . . . . . . . . . . Level 5 . | . . . . . . . . . . High Security . | . . . . . . . . . . Max Security . | . . . . . . . . . . Squads Dispatched . | . . . . . . . . . . Investigation . | . . . . . . . . . . Extermination . | . . . . . . . . . . Reinforcement . | . . . . . . . . . . Assault . | . . . . . . . . . . Garrison . | . . . . . . . . . . Intercept . | . . . . . . . . . . Searches Triggered . | . . . . . . . . . . Construction Impeded . | . . . . . . . . . . Haulers Reinforced . | . . . . . . . . . . Active Scanning Responses . | . . . . . . . . . . Cargo Convoy Interrupts . | . . . . . . . . . . Stealth | -11 -10 -10 -10 -7 -5 -5 -5 -5 -4 --------- Run | Jun Mat Min Sub Rec Fac Upp Upp Zhi Pro Distress Signals 1 | . . . . . . . . . 1 Communications Jammed . | . . . . . . . . . . Distress Signals . | . . . . . . . . . . Times Spotted 80 | . 5 5 29 1 3 17 11 . 9 Peak Tracking Total 12 | . 3 3 4 1 3 12 6 . 9 Tactical Retreats 9 | . . . 1 . . 4 4 . . Traps | -11 -10 -10 -10 -7 -5 -5 -5 -5 -4 ------- Run | Jun Mat Min Sub Rec Fac Upp Upp Zhi Pro Traps Triggered . | . . . . . . . . . . Indirectly . | . . . . . . . . . . Trap Hack Attempts . | . . . . . . . . . . Triggered . | . . . . . . . . . . Disarmed . | . . . . . . . . . . Reprogrammed . | . . . . . . . . . . Reused . | . . . . . . . . . . Traps Extracted . | . . . . . . . . . . Installed . | . . . . . . . . . . Triggered . | . . . . . . . . . . Machines | -11 -10 -10 -10 -7 -5 -5 -5 -5 -4 ---------- Run | Jun Mat Min Sub Rec Fac Upp Upp Zhi Pro Machines Disabled 3 | . . . 3 . . . . . . Max in Single Turn 2 | . . . 2 . . . . . . Machines Repaired . | . . . . . . . . . . Machines Sabotaged . | . . . . . . . . . . Overloaded Fab Kills . | . . . . . . . . . . Hacking | -11 -10 -10 -10 -7 -5 -5 -5 -5 -4 --------- Run | Jun Mat Min Sub Rec Fac Upp Upp Zhi Pro Machines Accessed 18 | . 2 . 1 7 . 2 1 5 . Terminals 7 | . 2 . . 4 . . 1 . . Fabricators . | . . . . . . . . . . Repair Stations . | . . . . . . . . . . Recycling Units 3 | . . . . 3 . . . . . Scanalyzers . | . . . . . . . . . . Garrison Access . | . . . . . . . . . . Total Hacks 45 | . 4 . 4 12 . 5 1 19 . Successful 35 | . 1 . 4 5 . 5 1 19 . Failed 10 | . 3 . . 7 . . . . . Catastrophic 4 | . 1 . . 3 . . . . . Database Lockouts . | . . . . . . . . . . Manual 5 | . 2 . . 3 . . . . . Terminals 10 | . 4 . . 5 . . 1 . . Fabricators . | . . . . . . . . . . Repair Stations . | . . . . . . . . . . Recycling Units 7 | . . . . 7 . . . . . Scanalyzers . | . . . . . . . . . . Garrison Access . | . . . . . . . . . . Terminal Hacks 32 | . 1 . 4 2 . 5 1 19 . Record 17 | . . . 4 1 . 4 1 7 . Part Schematic 4 | . . . . . . . . 4 . Robot Analysis 4 | . . . . . . . . 4 . Prototype ID Bank 4 | . . . . . . . . 4 . Open Door 1 | . . . . . . 1 . . . Branch Access Points 1 | . 1 . . . . . . . . Alert Level 1 | . . . . 1 . . . . . Fabricator Hacks . | . . . . . . . . . . Repair Station Hacks . | . . . . . . . . . . Recycling Unit Hacks 3 | . . . . 3 . . . . . Report Inventory 2 | . . . . 2 . . . . . Retrieve Components 1 | . . . . 1 . . . . . Scanalyzer . | . . . . . . . . . . Garrison Access Hacks . | . . . . . . . . . . Unauthorized Hacks . | . . . . . . . . . . Terminals . | . . . . . . . . . . Fabricators . | . . . . . . . . . . Repair Stations . | . . . . . . . . . . Recycling Units . | . . . . . . . . . . Scanalyzers . | . . . . . . . . . . Garrison Access . | . . . . . . . . . . Data Cores Recovered . | . . . . . . . . . . Used . | . . . . . . . . . . Hacking Detections 7 | . 2 . . 5 . . . . . Full Trace Events 2 | . 1 . . 1 . . . . . Feedback Events . | . . . . . . . . . . Feedback Blocked . | . . . . . . . . . . Robot Schematics Acquired . | . . . . . . . . . . Robots Built . | . . . . . . . . . . Authchips . | . . . . . . . . . . Time . | . . . . . . . . . . Total Robot Build Rating . | . . . . . . . . . . Part Schematics Acquired 4 | . . . . . . . . 4 . Parts Built . | . . . . . . . . . . Authchips . | . . . . . . . . . . Time . | . . . . . . . . . . Total Part Build Rating . | . . . . . . . . . . Parts Repaired . | . . . . . . . . . . Time . | . . . . . . . . . . Parts Recycled . | . . . . . . . . . . Recycled Matter . | . . . . . . . . . . Retrieved Matter . | . . . . . . . . . . Retrieved Components . | . . . . . . . . . . Parts Scanalyzed . | . . . . . . . . . . Part Schematics Acquired . | . . . . . . . . . . Parts Damaged . | . . . . . . . . . . Bothacking | -11 -10 -10 -10 -7 -5 -5 -5 -5 -4 ------------ Run | Jun Mat Min Sub Rec Fac Upp Upp Zhi Pro Used RIF Installer . | . . . . . . . . . . Robots Hacked . | . . . . . . . . . . Non-combat . | . . . . . . . . . . Combat . | . . . . . . . . . . Robot Hacks Applied . | . . . . . . . . . . Relay Couplers Released . | . . . . . . . . . . Fabnet Peak Effective % . | . . . . . . . . . . Robots Rewired . | . . . . . . . . . . Allies Hacked . | . . . . . . . . . . Hacks Repelled . | . . . . . . . . . . Allies | -11 -10 -10 -10 -7 -5 -5 -5 -5 -4 -------- Run | Jun Mat Min Sub Rec Fac Upp Upp Zhi Pro Total Allies 2 | . . . . . . 2 . . . Largest Group 2 | . . . . . . 2 . . . Highest-Rated Group 56 | . . . . . . 56 . . . Highest-Rated Ally 31 | . . . . . . 31 . . . Total Orders . | . . . . . . . . . . Ally Attacks 24 | . . . . . . 24 . . . Total Damage 483 | . . . . . . 483 . . . Kills 2 | . . . . . . 2 . . . Allies Corrupted . | . . . . . . . . . . Allies Melted . | . . . . . . . . . . Intel | -11 -10 -10 -10 -7 -5 -5 -5 -5 -4 ------- Run | Jun Mat Min Sub Rec Fac Upp Upp Zhi Pro Robot Analysis Total 4 | . . . . . . . . 4 . Derelict Logs Recovered 6 | . . . 2 . . 2 1 . 1 Drone Launches . | . . . . . . . . . . Drone Recoveries . | . . . . . . . . . . Exploration | -11 -10 -10 -10 -7 -5 -5 -5 -5 -4 ------------- Run | Jun Mat Min Sub Rec Fac Upp Upp Zhi Pro Turns Passed 4577 | 61 229 216 1539 457 58 1180 467 255 115 Spaces Moved 3588 | 43 159 136 1235 384 46 687 633 170 95 Core 458 | 7 . . . . . 41 410 . . Treads . | . . . . . . . . . . Legs 722 | 36 159 136 376 . . 15 . . . Wheels 1870 | . . . 859 384 46 104 212 170 95 Hover . | . . . . . . . . . . Flight 538 | . . . . . . 527 11 . . Fastest Speed 32 | 50 120 120 90 100 100 32 45 115 115 Average Speed 111 | 108 120 120 108 107 104 148 71 115 115 Slowest Speed 515 | 120 120 120 120 115 115 515 205 115 115 Overloaded Moves . | . . . . . . . . . . Propulsion Burnouts . | . . . . . . . . . . Robots Hopped . | . . . . . . . . . . Cave-ins Triggered . | . . . . . . . . . . Exploration Rate (%) 41 | 3 27 24 57 70 2 87 69 62 16 Regions Visited 9 Branch Regions 7 Pre-discovered Areas 6 | . . . 1 . . 2 . 3 . Known Exits Taken 3 | . 1 . . . . . 1 1 . Unknown Exits Taken 6 | 1 . 1 1 1 1 1 . . . Scrap Searched 9 | . . 1 4 . . 1 3 . . Spaces Dug . | . . . . . . . . . . Terrain Destroyed 122 | . . . 87 17 . 18 . . . Melee . | . . . . . . . . . . Projectile . | . . . . . . . . . . AOE 122 | . . . 87 17 . 18 . . . Terrain Rammed . | . . . . . . . . . . Walls Destroyed . | . . . . . . . . . . Machines Disabled . | . . . . . . . . . . Actions | -11 -10 -10 -10 -7 -5 -5 -5 -5 -4 --------- Run | Jun Mat Min Sub Rec Fac Upp Upp Zhi Pro Total 4029 | 57 175 158 1363 425 53 842 644 209 103 Wait 210 | . . . 39 26 4 124 . 14 3 Move 3579 | 42 158 135 1234 383 45 686 632 169 95 Hop . | . . . . . . . . . . Pick Up 40 | 9 3 2 10 1 1 8 4 2 . Fast Attach 20 | . . 2 8 4 . 1 1 4 . Attach 26 | 6 . . 6 1 1 6 6 . . Detach 3 | . . . . . . 2 1 . . Swap 13 | . . . 8 2 1 1 . 1 . Drop 31 | . . . 14 6 . 5 . 1 5 Fire 98 | . 14 19 40 2 1 4 . 18 . Melee . | . . . . . . . . . . Ram 5 | . . . . . . 5 . . . Kick . | . . . . . . . . . . Crush . | . . . . . . . . . . Escape Stasis . | . . . . . . . . . . Rewire . | . . . . . . . . . . Trap . | . . . . . . . . . . Miscellaneous 4 | . . . 4 . . . . . . Route ------- -11/Junkyard -10/Materials (discovered 2 exits: *Min x2) -10/Mines -10/Subcaves (discovered 2 exits: [*Mat] / *Rec) -7/Recycling -5/Factory -5/Upper Caves -5/Upper Caves (discovered 2 exits: Fac / *Zhi) -5/Zhirov -4/Proximity Caves History --------- Turn | Location | Event 4 | -11/Junkyard | Discovered new exit (range 16) 62 | -11/Junkyard | Entered Materials 265 | -10/Materials | Identified exit to Mines 291 | -10/Materials | Entered Mines 310 | -10/Mines | Build established: Mutant 481 | -10/Mines | Discovered new exit (range 10) 507 | -10/Mines | Entered Subcaves 518 | -10/Subcaves | Discovered new exit (range 14) 667 | -10/Subcaves | Learned location of Zion (-6) 667 | -10/Subcaves | Met a Zionite searching for "candidates" 1014 | -10/Subcaves | Core integrity fell below 50% 1347 | -10/Subcaves | Build established: Subdweller-Mutant 1526 | -10/Subcaves | Visited Clippyterm 1529 | -10/Subcaves | Learned Factory trap positions 1637 | -10/Subcaves | Learned location of 1 exit from Materials 1658 | -10/Subcaves | Core integrity fell below 20% 2018 | -10/Subcaves | Discovered new exit (range 15) 2046 | -10/Subcaves | Entered Recycling 2053 | -7/Recycling | Found Scrap Engine 2487 | -7/Recycling | Discovered new exit (range 16) 2503 | -7/Recycling | Entered Factory 2503 | -5/Factory | Evolved 10 slots: Propulsion x3, Utility x7 2504 | -5/Factory | Loaded intel: 81 trap records 2550 | -5/Factory | Discovered new exit (range 10) 2561 | -5/Factory | Entered Upper Caves 2584 | -5/Upper Caves | Build established: Mutant 2723 | -5/Upper Caves | Lost 3 parts (1u2w) 2729 | -5/Upper Caves | Attracted the attention of an 0b10 checkpoint 2734 | -5/Upper Caves | Encountered a Warlord checkpoint 2785 | -5/Upper Caves | Core integrity fell below 50% 2827 | -5/Upper Caves | A Commander dispatched an escort 2845 | -5/Upper Caves | Learned location of Armory (-3) 2845 | -5/Upper Caves | Learned Factory trap positions 3104 | -5/Upper Caves | Learned Factory terminal intel 3260 | -5/Upper Caves | Learned Factory emergency access door positions 3722 | -5/Upper Caves | Discovered new exit (range 5) 3741 | -5/Upper Caves | Entered another Upper Caves area 3741 | -5/Upper Caves | Accompanied by 1 ally 3742 | -5/Upper Caves | Commander's escort returned to base 3768 | -5/Upper Caves | Attracted the attention of an 0b10 checkpoint 3795 | -5/Upper Caves | Spotted B-75 Beast 3799 | -5/Upper Caves | Identified exit to Factory 3892 | -5/Upper Caves | Core integrity fell below 20% 4200 | -5/Upper Caves | Discovered new exit (range 7) 4204 | -5/Upper Caves | Identified exit to Zhirov 4208 | -5/Upper Caves | Entered Zhirov 4208 | -5/Zhirov | Discovered new exit (range 3) 4229 | -5/Zhirov | Met Zhirov 4264 | -5/Zhirov | Learned location of Quarantine (-3) 4264 | -5/Zhirov | Learned location of Testing (-2) 4264 | -5/Zhirov | Learned location of Command (-1) 4275 | -5/Zhirov | Zhirov requested help retrieving the SGEMP Prototype 4292 | -5/Zhirov | Found Alien Artifact 4307 | -5/Zhirov | Found Alien Artifact 4307 | -5/Zhirov | Identified Integrated Dissipator 4307 | -5/Zhirov | Installed Integrated Dissipator, increased core heat dissipation (+20) 4462 | -5/Zhirov | Identified exit to Proximity Caves 4463 | -5/Zhirov | Entered Proximity Caves 4504 | -4/Proximity Caves | Learned Research emergency access door positions 4570 | -4/Proximity Caves | Attracted the attention of an 0b10 base 4573 | -4/Proximity Caves | Spotter reported a threat 4573 | -4/Proximity Caves | Spotter reported a threat 4578 | -4/Proximity Caves | Destroyed by G-67 Veteran with Field Laser Last Messages --------------- 04504_ Acquired derelict log, extracted data. Data stored: Research emergency access points. 04565_ G-67 Veteran springs to life. 04570_ N-01 Spotter sends out distress signal. 04571_ N-01 Spotter is scanning... 04571_ S-27 Virus springs to life. 04572_ S-27 Virus suffers critical hit (Burn). 04572_ S-27 Virus destroyed. 04573_ Critical hit (Burn: +50). 04573_ N-01 Spotter sends a signal. 04573_ ALERT: Unidentified potential threat approaching Complex 0b10. 04573_ N-01 Spotter sends a signal. 04573_ ALERT: Unidentified potential threat approaching Complex 0b10. 04575_ Adv. Targeting Computer destroyed. 04576_ Dropped Com. Wheel. 04576_ Dropped Carbon-fiber Leg. 04577_ Imp. Deuterium Engine destroyed. 04577_ Dropped Adv. Plasma Cannon. 04577_ Dropped Adv. Energy Well. 04578_ Dropped Imp. Matter Compressor. Map ----- +----------------------------------------------------+ | ?????????????????????????????????????????????????? | | ?????????????????????????????????????????????????? | | ?????????????????????????????????????????????????? | | ?????????????????????????????????????????????????? | | ?????????????????????????????????????????????????? | | ?????????????????????????????????????????????????? | | ?????????????????????????????????????????????????? | | ?????????????????????????????????????????????????? | | ?????????????????????????????????????????????????? | | ?????????????????????????????????????????????????? | | ?????????????????????????????????????????????????? | | ?????????????????????????????????????????????????? | | ?????????????????????????????????????????????????? | | ?????????????????????????????????????????????????? | | ?????????????????????????????????????????????????? | | ?????????????????????????????????????????????????? | | ?????????????????????????????????????????????????? | | ?????????????????????????????????????????????????? | | ?????????????????????????????????????????????????? | | ???######????????????????????????????????????????? | | ??## ##?????????####??????????????????????????? | | ??# #??????#### ##?????????????????????????? | | ??# ##????## #???????????? ?????????? | | ???# ###### g #####???? ????????? | | ???# # gns = # ????????? | | ??## # g s ]@! ????????? | | ?## # ##+##+##g##! ????????? | | ?# ### #" "# ????????? | | ## #### #" "# ?????????? | | #### #" "# ?????????? | | ## #" "# #??????????? | | # #" # #### #??????????? | | ### #" """# #?????#??????????? | | ####?# #"T """# #????????????????? | | ## ##???# #" """? ## ????????????????? | | ## #???# #""" "??? #? ???????????????? | | #???# #?###+##??? ? ??????????????? | | ##???# ?????????? ?? ??????????????? | | #????? ?????????? ?? ????????????????? | | #####??###?????????? ?????????????????????? | | ### #?# ##?????????????? ?????????????????????? | | ### ### ####???????????????????????????????????? | | ## ##??????????????????????????????????? | | ### ##?????????????????????????????????? | | #?# #?????????????????????????????????? | | ??## #?????????????????????????????????? | | ???# ########?????????????????????????????????? | | ??## ##????????????????????????????????????????? | | ??# #?????????????????????????????????????????? | | ??# ##????????????????????????????????????????? | +----------------------------------------------------+ Best States ------------- Heat Dissipation 60 Energy Generation 18 Energy Capacity 790 Matter Stores 505 Matter Capacity 600 Sight Range 21 Terrain Scan Density 10 Armor Coverage 800 Weapon Shielding 90 Evasion (%) 63 Targeting Accuracy 8 Item Schematics ----------------- Assault Drone Bay | -5/Zhirov | Free Exp. Heat Sink | -5/Zhirov | Free Exp. Optical Array | -5/Zhirov | Free Imp. Arc Thrower | -5/Zhirov | Free Robot Schematics ------------------ None Fabricated ------------ Nothing Alien Tech Used ----------------- Integrated Dissipator Achievements -------------- None Challenges ------------ None Game ------ Seed ProcessingEfficiencyFlamer Manual? 0 Play Time 00:29:24 Cumulative 54.1 hours Start 2023.08.12 @ 22:18:25 End 2023.08.12 @ 22:49:22 Sessions 1 Manual Loads 0 Difficulty Rogue Special Mode None Game No. 42 Rogue 6 Adventurer 36 Explorer 0 Win Type - Total 6 Types 1/0/5/0/0/0/0/0/0 Lore% 39 Gallery% 59 Achievement% 51 Wizard Run 0 Options --------- ASCII 0 Keyboard 0 Movement Mouse Keybinds 0 Fullscreen 1 Font 18/SmallcapsGlow Map View 76x50 Tactical HUD 1 Map Filters NONE Filters NONE Steam 1 RUN: a13884c4-e160-452a-93fe-a2ab92c46e85